bitfinex/quotes_ETHUSD_20250511
["timestamp","ask_amount","ask_price","bid_price","bid_amount"]
[1746987393192,2.877,2479.8,2479.2,0.8262]
[1746987394194,4.12176903,2479.8,2479.2,0.8262]
[1746987394893,2.877,2479.8,2479.2,0.8262]
[1746987396520,3.6637,2479.8,2479.2,0.20365453]
[1746987396826,4.03329556,2479.4,2479.1,0.05]
[1746987397109,2.825,2479.3,2479.1,0.05]
[1746987397418,6.85849081,2479.3,2479.1,0.05]
[1746987397631,7.69725921,2479.2,2479.1,0.05]
[1746987398189,3.6637,2479.2,2479.1,0.05]
[1746987398481,5.703,2479.2,2479.1,0.05]
[1746987399395,9.73655921,2479.2,2479.1,0.05]
[1746987399717,6.83703947,2479.2,2479.1,0.05]
[1746987400420,0.7867,2479.5,2479.1,0.05]
[1746987400600,2.822,2479.6,2479.2,0.797]
[1746987400792,6.16,2480.0,2479.2,0.797]
[1746987400993,20.67,2480.3,2479.3,0.04033467]
[1746987401224,2.822,2480.1,2479.4,10.415]
[1746987401392,2.877,2480.2,2479.5,11.25232554]
[1746987401586,2.877,2480.2,2479.8,8.0]
[1746987401785,2.877,2480.2,2479.9,0.797]
[1746987402611,2.822,2480.3,2479.9,0.797]
[1746987402783,2.822,2480.3,2479.9,2.05537922]
[1746987402982,2.822,2480.3,2480.0,3.74647163]
[1746987403220,2.822,2480.3,2480.1,8.0]
[1746987403396,2.822,2480.3,2479.9,2.05537922]
[1746987403592,2.822,2480.3,2479.9,0.797]
[1746987404677,6.9593,2481.4,2480.5,0.7578]
[1746987405025,9.66837813,2481.2,2480.5,0.7578]
[1746987405399,5.638,2481.2,2480.5,0.7578]
[1746987405723,9.66831738,2481.2,2480.5,0.7578]
[1746987406121,2.821,2481.2,2480.6,0.04031213]
[1746987406424,2.821,2481.2,2480.8,8.0]
[1746987406626,2.814,2481.7,2480.9,0.7578]
[1746987406788,2.814,2481.7,2480.9,1.0577891]
[1746987406988,2.814,2481.7,2480.9,2.36121207]
[1746987408520,2.821,2482.1,2482.0,8.0]
[1746987408724,2.821,2482.1,2481.8,0.7578]
[1746987411421,2.858,2482.4,2481.8,0.7578]
[1746987412330,0.05,2482.4,2481.8,0.7578]
[1746987412534,4.02868771,2482.2,2481.8,0.7578]
[1746987412826,1.02011748,2482.4,2481.5,0.7721]
[1746987412827,4.02884654,2482.1,2481.5,0.7721]
[1746987412989,5.0485558,2482.4,2481.5,0.7721]
[1746987413415,4.0285555,2482.3,2481.5,0.7721]
[1746987413600,1.02011748,2482.4,2481.5,0.7721]
[1746987413819,0.05,2482.4,2481.7,0.7837]
[1746987414004,0.05,2482.4,2481.9,8.0]
[1746987414204,0.05,2482.4,2482.1,8.0]
[1746987414403,0.05,2482.4,2482.3,8.0]
[1746987414609,0.05,2482.4,2482.3,5.732906]
[1746987414917,0.05,2482.4,2481.8,0.7837]
[1746987414918,0.05,2482.4,2482.0,8.0]
[1746987415123,0.05,2482.4,2482.2,8.0]
[1746987415323,0.05,2482.4,2482.3,17.628706]
[1746987415632,0.05,2482.4,2482.3,24.020826]
[1746987415831,0.05,2482.4,2482.3,8.7837]
[1746987416400,0.05,2482.4,2482.3,43.38485062]
[1746987416595,0.05,2482.4,2482.3,49.66280151]
[1746987416938,0.05,2482.4,2482.3,47.14768351]
[1746987417434,0.05,2482.4,2482.3,47.69768351]
[1746987417642,0.05,2482.4,2482.3,45.76778951]
[1746987417945,0.05,2482.4,2482.3,40.58458551]
[1746987418104,0.05,2482.4,2482.3,38.59069151]
[1746987419044,0.05,2482.4,2482.3,41.00569151]
[1746987419411,0.05,2482.4,2482.3,15.85092751]
[1746987419601,0.05,2482.4,2482.3,21.9487]
[1746987419799,0.05,2482.4,2482.3,63.767083]
[1746987420248,0.05,2483.4,2482.4,8.55]
[1746987420402,0.05,2483.4,2482.8,0.7837]
[1746987420733,0.05,2483.4,2483.0,8.0]
[1746987420903,0.05,2483.4,2483.2,8.0]
[1746987421105,4.07685144,2483.4,2483.3,8.0]
[1746987421304,0.05,2483.4,2483.3,8.0]
[1746987421535,0.05,2483.4,2483.3,14.996903]
[1746987421856,6.82849097,2483.6,2483.3,8.614903]
[1746987422139,6.82849097,2483.6,2482.8,0.7837]
[1746987422339,4.02661686,2483.5,2482.9,0.87837]
[1746987422538,2.802,2483.6,2482.9,0.87837]
[1746987422706,4.02661392,2483.5,2482.9,0.87837]
[1746987422908,6.82851661,2483.6,2482.9,0.87837]
[1746987423307,4.02683553,2483.4,2482.8,0.7837]
[1746987423844,4.02699254,2483.3,2482.8,0.7837]
[1746987424001,4.02811606,2482.6,2482.4,0.7837]
[1746987424343,2.81,2482.8,2482.1,0.7837]
[1746987425102,6.83774887,2482.8,2482.1,0.7837]
[1746987425333,2.81,2482.8,2482.1,0.7837]
[1746987426342,4.17830489,2482.8,2482.1,0.7837]
[1746987426528,4.17830489,2482.8,2481.8,3.1987]
[1746987426729,4.17830489,2482.8,2481.5,8.0]
[1746987426730,4.02787288,2482.7,2481.9,0.7837]
[1746987427245,2.81,2482.8,2481.9,0.7837]
[1746987427442,0.7529,2482.3,2481.5,0.7837]
[1746987427744,2.815,2482.2,2481.5,0.7837]
[1746987427922,2.815,2482.2,2481.6,0.04029456]
[1746987428125,2.815,2482.2,2481.5,0.7837]
[1746987428450,3.3783,2482.2,2481.5,0.7837]
[1746987428607,2.815,2482.2,2481.5,0.7837]
[1746987429247,4.02910979,2482.0,2481.5,0.7837]
[1746987429608,4.02935234,2481.8,2481.5,0.7837]
[1746987429842,0.8332,2482.0,2481.2,0.7913]
[1746987430007,2.815,2482.2,2481.3,0.0402996]
[1746987430008,6.84372821,2482.2,2481.3,0.0402996]
[1746987430213,4.02886223,2482.1,2481.3,0.0402996]
[1746987431448,4.02886223,2482.1,2481.2,0.7913]
[1746987431840,4.02886223,2482.1,2481.3,0.04029572]
[1746987432624,8.50922282,2482.2,2481.3,0.04029572]
[1746987432828,4.02925375,2481.9,2481.2,0.7913]
[1746987433032,6.16,2482.4,2481.9,4.029253]
[1746987433213,8.973,2482.8,2482.1,0.7913]
[1746987433417,2.813,2482.8,2482.1,0.7913]
[1746987434160,0.8224,2483.5,2482.4,0.55]
[1746987434350,0.8224,2483.5,2482.9,0.7915]
[1746987434545,2.813,2483.7,2483.0,0.04027178]
[1746987434546,5.628,2483.7,2483.0,0.04027178]
[1746987434765,9.65425189,2483.7,2482.9,0.7915]
[1746987435424,7.07825865,2483.7,2482.5,0.7915]
[1746987435667,4.02731157,2483.1,2482.5,0.7915]
[1746987435867,4.02746961,2483.0,2482.2,0.7915]
[1746987436028,6.84527707,2483.1,2482.2,0.7915]
[1746987436229,9.65827707,2483.1,2482.2,0.7915]
[1746987436752,5.631,2483.1,2482.2,0.7915]
[1746987436923,5.631,2483.1,2482.3,1.12065]
[1746987437128,5.631,2483.1,2482.4,8.0]
[1746987437743,5.631,2483.1,2482.5,8.7915]
[1746987438083,5.631,2483.1,2482.5,0.7915]
[1746987439731,2.813,2483.1,2482.5,0.7915]
[1746987440824,0.7802,2483.0,2482.2,0.831]
[1746987441164,4.02828687,2482.5,2481.9,0.831]
[1746987441358,2.806,2482.4,2481.9,0.831]
[1746987442426,6.83443476,2482.4,2481.9,0.831]
[1746987442827,2.806,2482.4,2481.9,0.831]
[1746987443832,2.813,2482.5,2481.9,0.831]
[1746987444034,10.18750413,2483.0,2482.6,8.0]
[1746987444247,2.803,2482.9,2482.1,0.7962]
[1746987445052,0.8171,2483.2,2482.3,8.7962]
[1746987445234,2.801,2483.0,2482.4,1.17612]
[1746987445847,2.813,2483.1,2482.5,0.7962]
[1746987446037,2.813,2483.1,2483.0,8.0]
[1746987446233,4.84327402,2483.8,2483.1,8.0]
[1746987446571,4.02641327,2483.6,2483.0,0.7962]
[1746987446775,5.0723646,2483.6,2483.0,0.7962]
[1746987449074,4.0723646,2483.6,2483.0,0.7962]
[1746987450300,3.02641327,2483.6,2483.0,0.7962]
[1746987451895,4.02660157,2483.5,2483.0,0.7962]
[1746987452394,9.64226409,2483.7,2483.0,0.7962]
[1746987453157,4.02652797,2483.6,2483.0,0.7962]
[1746987453359,6.80852797,2483.6,2483.0,0.7962]
[1746987453894,6.83826409,2483.7,2483.0,0.7962]
[1746987453895,2.812,2483.7,2483.1,0.04026995]
[1746987454581,2.781,2484.0,2483.2,8.7524]
[1746987454780,14.497,2484.2,2483.3,0.04026133]
[1746987455103,17.279,2484.2,2483.4,10.415]
[1746987455669,14.497,2484.2,2483.4,10.415]
[1746987455874,17.277,2484.2,2483.5,0.7524]
[1746987456070,2.862,2484.4,2483.5,0.7524]
[1746987456071,2.862,2484.4,2483.6,8.31674]
[1746987456398,2.862,2484.4,2483.7,0.7524]
[1746987456555,2.862,2484.4,2483.8,0.04025567]
[1746987457300,2.862,2484.4,2483.8,8.04025567]
[1746987457500,6.88721842,2484.4,2483.9,8.47895865]
[1746987457823,6.88721842,2484.4,2483.9,0.47895865]
[1746987457973,6.88721842,2484.4,2483.7,0.7524]
[1746987458173,2.862,2484.4,2483.7,0.7524]
[1746987458384,2.862,2484.4,2483.7,8.7524]
[1746987458998,2.862,2484.4,2483.8,0.0402557]
[1746987459204,0.05,2484.4,2484.0,2.415]
[1746987459360,0.05,2484.4,2484.2,8.0]
[1746987459561,0.05,2484.4,2484.3,27.511548]
[1746987460100,0.05,2484.4,2484.3,43.950869]
[1746987460335,0.05,2484.4,2484.3,32.666687]
[1746987461890,0.05,2484.4,2484.3,28.79589]
[1746987462190,0.05,2484.4,2484.3,29.292217]
[1746987462391,0.05,2484.4,2484.3,10.190993]
[1746987462592,0.05,2484.4,2484.0,3.5708]
[1746987462797,4.07519538,2484.4,2484.0,0.7588]
[1746987463095,0.05,2484.4,2483.8,0.7588]
[1746987463391,4.02536253,2484.3,2483.8,0.7588]
[1746987463594,0.05,2484.4,2483.8,0.7588]
[1746987467886,4.07513369,2484.4,2483.8,0.7588]
[1746987468233,0.05,2484.4,2483.8,0.7588]
[1746987470129,0.7759,2484.3,2483.5,0.7791]
[1746987470300,0.7759,2484.3,2483.6,0.93291]
[1746987470517,0.7759,2484.3,2483.5,0.98155693]
[1746987470720,0.7759,2484.6,2483.8,0.7791]
[1746987471057,0.7759,2484.9,2484.0,0.7791]
[1746987471553,3.5459,2484.9,2484.0,0.7791]
[1746987472210,4.02470175,2484.7,2484.1,10.415]
[1746987472553,3.5459,2484.9,2484.1,2.415]
[1746987472736,4.024652,2484.7,2484.2,0.7791]
[1746987472908,4.02452996,2484.8,2483.9,0.7791]
[1746987473245,4.02446877,2484.8,2483.9,0.7791]
[1746987473453,4.02490929,2484.6,2483.9,0.7791]
[1746987473742,4.02490929,2484.6,2484.0,1.11941]
[1746987473950,4.02446877,2484.8,2484.0,1.11941]
[1746987474153,4.02464306,2484.7,2484.0,1.11941]
[1746987474358,3.5459,2484.9,2484.0,1.11941]
[1746987474516,3.5459,2484.9,2484.1,8.0402527]
[1746987474713,4.02477023,2484.7,2484.2,1.15746627]
[1746987475249,3.5459,2484.9,2484.3,8.0]
[1746987475474,4.02448699,2484.8,2484.3,8.0]
[1746987475808,4.02474239,2484.7,2484.3,8.0]
[1746987476256,4.02479992,2484.6,2484.3,8.0]
[1746987476421,4.02527127,2484.4,2484.0,8.0]
[1746987476624,9.7059,2484.9,2483.9,0.7791]
[1746987476836,6.16,2484.9,2484.1,0.7547]
[1746987477024,6.16,2484.9,2484.2,0.04024571]
[1746987477425,6.16,2484.9,2484.2,2.45524571]
[1746987477766,6.16,2484.9,2484.5,0.7547]
[1746987477963,3.565,2485.2,2484.5,0.7547]
[1746987478355,4.02409336,2485.1,2484.5,0.7547]
[1746987479064,7.58888538,2485.2,2484.5,0.7547]
[1746987480547,4.02409571,2485.1,2484.5,0.7547]
[1746987480731,4.02414486,2485.0,2484.5,1.90376946]
[1746987480935,3.565,2485.2,2484.5,1.90376946]
[1746987481243,4.02418041,2485.0,2484.5,0.7547]
[1746987481462,4.02406076,2485.1,2484.5,0.7547]
[1746987481628,7.58890594,2485.2,2484.5,0.7547]
[1746987481832,4.81490594,2485.2,2484.5,0.7547]
[1746987482064,7.58290594,2485.2,2484.5,0.7547]
[1746987482372,4.02398293,2485.1,2484.5,1.87167]
[1746987482553,4.02398293,2485.1,2484.5,0.7547]
[1746987482996,7.58289727,2485.2,2484.5,0.7547]
[1746987483763,2.768,2485.2,2484.5,0.7547]
[1746987484580,6.79189053,2485.2,2484.5,0.7547]
[1746987485161,2.768,2485.2,2484.5,0.7547]
[1746987485337,0.2768,2485.1,2484.5,0.7547]
[1746987485546,4.02406189,2485.1,2484.5,0.7547]
[1746987485744,4.02486922,2484.6,2484.2,0.8074]
[1746987485948,4.79451513,2485.0,2484.2,0.8074]
[1746987486146,4.02455874,2484.8,2484.2,0.8074]
[1746987486695,0.7703,2484.7,2483.8,0.8074]
[1746987486871,3.518489,2484.6,2483.8,1.90814]
[1746987487077,4.02525986,2484.4,2483.8,0.8074]
[1746987487459,3.518489,2484.6,2483.8,0.8074]
[1746987487779,0.7703,2484.1,2482.9,0.8074]
[1746987487979,9.56079672,2484.0,2482.9,0.8074]
[1746987488183,4.02715266,2483.2,2482.5,0.8074]
[1746987488397,4.02742963,2483.0,2482.5,1.16514]
[1746987488748,4.02730132,2483.1,2482.7,8.0]
[1746987489052,2.768,2483.5,2483.4,10.332601]
[1746987489254,2.768,2483.5,2483.0,0.8074]
[1746987489805,2.768,2483.5,2483.2,8.0]
[1746987490086,2.768,2483.5,2483.4,8.0]
[1746987490258,2.768,2483.5,2483.2,8.0]
[1746987490459,2.768,2483.5,2483.2,1.07877709]
[1746987490870,2.768,2483.5,2483.4,8.0]
[1746987491087,2.768,2483.5,2483.2,1.07877709]
[1746987492455,2.768,2483.5,2483.4,8.0]
[1746987492650,2.768,2483.5,2483.4,14.722238]
[1746987493078,2.765,2484.0,2483.4,14.722238]
[1746987493274,2.765,2484.0,2483.5,0.8074]
[1746987493553,6.79086394,2484.0,2483.5,0.8074]
[1746987493792,4.02535612,2484.3,2484.0,2.100244]
[1746987493978,2.765,2484.2,2483.5,0.8074]
[1746987494572,6.79044361,2484.2,2483.5,0.8074]
[1746987495859,2.765,2484.2,2483.5,0.8074]
[1746987496056,2.764,2484.3,2483.5,0.8074]
[1746987496671,3.3949,2484.3,2483.5,0.8074]
[1746987496860,4.0259292,2483.9,2483.5,0.8074]
[1746987497810,4.02585151,2484.0,2483.5,0.8074]
[1746987499699,4.02609914,2483.8,2483.2,11.74619701]
[1746987499901,4.02634466,2483.7,2483.2,11.5428]
[1746987500196,4.02634466,2483.7,2483.2,0.7788]
[1746987501509,4.84997143,2483.8,2483.2,0.7788]
[1746987501679,0.8238,2483.8,2483.2,0.7788]
[1746987501906,2.754,2484.2,2483.4,8.7788]
[1746987502126,2.754,2484.2,2483.6,8.0]
[1746987502344,2.764,2484.3,2483.7,0.04025959]
[1746987502634,2.764,2484.3,2483.6,2.415]
[1746987503134,6.78929203,2484.3,2483.5,2.415]
[1746987503341,6.78929203,2484.3,2483.4,8.7788]
[1746987503342,4.02589824,2484.0,2483.4,8.7788]
[1746987503636,4.02621326,2483.8,2483.1,0.7788]
[1746987503790,4.02602578,2483.9,2483.1,0.7788]
[1746987504194,6.971,2485.1,2483.4,0.55]
[1746987504392,6.971,2485.1,2484.2,0.7839]
[1746987504393,10.9950654,2485.1,2484.2,0.7839]
[1746987504642,0.811,2485.1,2484.2,0.7839]
[1746987504943,4.02445624,2484.9,2484.2,8.7839]
[1746987505236,4.024215,2485.0,2484.2,9.90379]
[1746987505451,4.02415399,2485.0,2484.2,9.90379]
[1746987505591,4.02459123,2484.8,2484.2,8.7839]
[1746987505797,4.02459123,2484.8,2484.2,0.7839]
[1746987506330,4.02463375,2484.7,2484.2,0.7839]
[1746987506516,4.02509218,2484.5,2484.0,8.7839]
[1746987506717,4.02509218,2484.5,2483.5,12.964]
[1746987506718,4.42774624,2484.4,2483.8,0.7839]
[1746987507039,4.02512044,2484.4,2483.8,0.7839]
[1746987507544,4.02535871,2484.3,2483.8,0.7839]
[1746987507832,4.025592,2484.2,2483.5,3.5479]
[1746987508316,4.025592,2484.2,2483.6,8.0]
[1746987509124,1.94146798,2484.3,2483.6,10.415]
[1746987509444,1.94146798,2484.3,2483.9,8.8212]
[1746987509620,0.93566798,2484.3,2483.9,8.8614549]
[1746987509819,0.93566798,2484.3,2484.1,8.0]
[1746987510132,2.764,2484.4,2484.3,8.0]
[1746987510295,2.764,2484.4,2484.3,0.299668]
[1746987510505,2.764,2484.4,2483.9,0.8212]
[1746987510807,2.764,2484.4,2484.0,0.32362]
[1746987512795,2.764,2484.4,2483.9,0.8212]
[1746987513010,0.8075,2484.9,2484.0,8.0]
[1746987513200,6.3315,2484.9,2484.0,8.0]
[1746987514429,6.3315,2484.9,2484.0,10.415]
[1746987514840,4.02446877,2484.8,2484.0,10.415]
[1746987515004,4.02446877,2484.8,2484.1,1.12362]
[1746987518050,10.35589645,2484.9,2484.1,1.12362]
[1746987521250,4.02473523,2484.7,2484.1,1.12362]
[1746987521572,4.02474529,2484.7,2484.1,1.12362]
[1746987521776,3.5715,2484.9,2484.1,1.12362]
[1746987521976,2.764,2484.9,2484.2,2.01751239]
[1746987522176,2.764,2484.9,2484.2,0.86365039]
[1746987522674,6.78830768,2484.9,2484.2,3.2384]
[1746987522894,6.16,2485.3,2484.3,0.04024848]
[1746987523055,0.05,2485.4,2484.6,2.415]
[1746987523381,4.07352093,2485.4,2484.7,0.04024215]
[1746987523573,4.07352093,2485.4,2484.7,0.36810637]
[1746987523881,4.02365941,2485.3,2484.7,0.32786422]
[1746987525184,0.05,2485.4,2484.5,0.8234]
[1746987525353,4.02392432,2485.2,2484.5,0.8234]
[1746987525681,4.02369423,2485.3,2484.5,0.8234]
[1746987525873,4.07358369,2485.4,2484.7,0.7898]
[1746987526074,0.05,2485.4,2484.8,8.0]
[1746987526268,0.05,2485.4,2484.9,1.12048]
[1746987526788,4.07352543,2485.4,2484.9,1.12048]
[1746987527679,4.02367895,2485.3,2484.9,1.12048]
[1746987527882,0.05,2485.4,2484.7,0.7898]
[1746987527883,4.02385201,2485.2,2484.7,0.7898]
[1746987528254,4.02373159,2485.3,2484.7,0.7898]
[1746987528456,4.02383472,2485.2,2484.7,0.7898]
[1746987528964,4.02373203,2485.3,2484.7,0.7898]
[1746987530448,4.0238526,2485.2,2484.7,0.7898]
[1746987530663,4.02398293,2485.1,2484.5,0.7581]
[1746987530979,4.0242578,2485.0,2484.5,0.7581]
[1746987531685,3.39847876,2485.0,2484.5,0.7581]
[1746987532071,5.461,2485.1,2484.5,0.7581]
[1746987532284,15.69457454,2485.4,2484.5,0.7581]
[1746987533203,4.02368122,2485.3,2484.5,0.7581]
[1746987533900,15.69455535,2485.4,2484.5,0.7581]
[1746987534467,4.02367018,2485.3,2484.5,0.7581]
[1746987535499,9.53458159,2485.4,2484.7,0.7581]
[1746987535696,9.53458159,2485.4,2484.8,0.31731]
[1746987536508,4.02365924,2485.3,2484.8,0.31731]
[1746987536707,4.02365911,2485.3,2484.7,0.7581]
[1746987536875,4.0240347,2485.1,2484.7,0.7581]
[1746987537273,4.02388835,2485.2,2484.8,8.0]
[1746987538073,6.3082,2485.4,2484.8,8.0]
[1746987538271,1.03316329,2485.3,2484.4,10.415]
[1746987538466,4.02426681,2485.0,2484.4,10.415]
[1746987538702,4.02424025,2485.0,2484.4,10.415]
[1746987539705,4.02390443,2485.2,2484.6,8.0]
[1746987540073,6.3082,2485.4,2484.7,0.04024351]
[1746987540405,5.511,2485.4,2484.8,0.7638]
[1746987540605,9.53450404,2485.4,2484.8,0.7638]
[1746987540909,5.511,2485.4,2484.8,8.7638]
[1746987541201,9.53450029,2485.4,2484.8,8.7638]
[1746987541403,9.53450029,2485.4,2484.8,9.99387044]
[1746987541771,9.53450029,2485.4,2484.8,1.99387044]
[1746987541971,5.511,2485.4,2484.8,0.7638]
[1746987542171,4.02365911,2485.3,2484.8,0.7638]
[1746987543470,9.53458941,2485.4,2484.8,0.7638]
[1746987544781,9.53458941,2485.4,2484.8,0.96666996]
[1746987545304,4.02373247,2485.3,2484.8,0.7638]
[1746987547813,5.511,2485.4,2484.8,0.7638]
[1746987547814,0.05,2485.4,2485.0,0.8113]
[1746987548015,0.05,2485.4,2485.3,11.2263]
[1746987548191,0.05,2485.4,2485.3,12.90295358]
[1746987548516,0.05,2485.4,2485.3,45.19153758]
[1746987551895,0.05,2485.4,2485.3,54.72133658]
[1746987554479,0.05,2485.4,2485.3,51.75633658]
[1746987554685,0.05,2485.4,2485.3,26.83168758]
[1746987554987,0.05,2485.4,2485.3,27.38168758]
[1746987556485,5.458,2486.6,2486.4,8.0]
[1746987556685,9.47957604,2486.6,2486.1,0.7698]
[1746987556924,5.458,2486.6,2486.1,0.7698]
[1746987557413,2.736,2486.6,2486.1,0.7698]
[1746987558702,6.74298048,2487.0,2486.1,0.7698]
[1746987559136,6.74298048,2487.0,2486.2,1.11848]
[1746987559435,7.52698395,2487.1,2486.2,1.11848]
[1746987559638,3.5062,2487.1,2486.2,1.11848]
[1746987559801,0.7842,2487.1,2486.4,0.7503]
[1746987560002,0.05,2487.4,2486.8,2.415]
[1746987560207,0.05,2487.4,2487.2,0.7503]
[1746987560501,0.05,2487.4,2487.3,32.14171025]
[1746987560823,0.05,2487.4,2487.3,13.079746]
[1746987561029,0.05,2487.4,2487.3,13.629746]
[1746987561912,0.05,2487.4,2487.3,16.044746]
[1746987562134,0.05,2487.4,2487.3,15.2342206]
[1746987562521,0.05,2488.4,2487.4,10.58070968]
[1746987562726,0.05,2488.4,2487.7,0.7503]
[1746987562939,0.05,2488.4,2488.0,0.7503]
[1746987563249,0.7093,2488.9,2488.2,8.0]
[1746987563453,1.05243,2488.9,2488.1,0.55]
[1746987563748,0.7093,2488.9,2488.1,0.55]
[1746987563955,4.01759975,2489.1,2488.1,0.55]
[1746987564106,4.01777144,2489.0,2488.2,8.0]
[1746987564308,4.01792247,2488.9,2488.2,8.0]
[1746987564508,4.01775738,2489.0,2488.2,8.0]
[1746987564710,4.41969477,2488.9,2488.2,8.0]
[1746987564907,0.40177574,2488.9,2488.2,8.0]
[1746987565223,4.01848503,2488.5,2487.3,0.799]
[1746987565440,4.0193922,2488.0,2487.3,0.799]
[1746987565826,4.01899135,2488.2,2487.3,0.799]
[1746987566146,5.441,2488.3,2487.3,0.799]
[1746987566346,4.01944068,2488.0,2487.3,0.799]
[1746987566648,4.89955681,2488.0,2487.3,0.799]
[1746987567013,0.88011613,2488.0,2487.3,0.799]
[1746987568144,4.01948963,2487.9,2487.3,0.799]
[1746987569149,4.01945415,2487.9,2487.0,0.7734]
[1746987569349,0.88011613,2488.0,2487.1,0.55]
[1746987569649,3.4837,2488.2,2487.3,0.55]
[1746987571929,3.4837,2488.2,2487.2,0.7734]
[1746987572135,4.01941285,2488.0,2487.2,0.7734]
[1746987572335,3.4837,2488.2,2487.2,0.7734]
[1746987572336,4.01969593,2487.8,2487.2,0.7734]
[1746987572524,7.50269768,2488.2,2487.2,0.7734]
[1746987572725,4.01938519,2488.0,2487.2,0.7734]
[1746987573054,3.4837,2488.2,2487.2,0.7734]
[1746987573257,4.0195325,2487.9,2487.2,0.7734]
[1746987573424,4.01963314,2487.8,2487.2,0.7734]
[1746987573618,4.01962347,2487.8,2487.2,0.7734]
[1746987573827,0.40196235,2487.8,2487.2,0.7734]
[1746987574216,3.5524,2487.7,2486.9,0.7856]
[1746987574835,7.57229156,2487.7,2486.9,0.7856]
[1746987575560,0.8324,2488.3,2487.8,7.974253]
[1746987575763,4.85134488,2488.3,2487.3,0.7856]
[1746987575934,4.77620216,2488.2,2487.3,0.7856]
[1746987576136,4.01937314,2488.0,2487.3,0.7856]
[1746987576334,4.0191774,2488.1,2487.3,0.7856]
[1746987578053,4.77615478,2488.2,2487.3,0.7856]
[1746987578818,0.75713449,2488.2,2487.3,0.7856]
[1746987579034,4.01937582,2488.0,2487.3,0.7856]
[1746987579423,4.0194962,2487.9,2487.3,0.7856]
[1746987579624,4.01937617,2488.0,2487.3,0.7856]
[1746987581360,4.01949622,2487.9,2487.3,0.7856]
[1746987582370,4.01949622,2487.9,2487.4,8.0]
[1746987582575,0.40194962,2487.8,2487.4,8.0]
[1746987582873,0.40194962,2487.8,2487.2,8.0]
[1746987582874,4.02010931,2487.5,2487.2,8.0]
[1746987583073,4.02010931,2487.5,2487.1,0.7856]
[1746987583246,4.01998954,2487.6,2487.1,0.7856]
[1746987585756,3.5524,2487.8,2487.1,0.7856]
[1746987585958,9.45748862,2487.9,2487.2,8.0]
[1746987586134,4.01973068,2487.8,2487.1,0.7856]
[1746987586971,6.35748109,2487.9,2487.1,0.7856]
[1746987587175,4.01976976,2487.8,2487.2,8.0]
[1746987587371,4.01981752,2487.7,2487.2,8.0]
[1746987587673,4.01972255,2487.8,2487.2,8.0]
[1746987587837,4.01984605,2487.7,2487.2,8.0]
[1746987588674,4.01984605,2487.7,2487.1,0.7856]
[1746987589587,0.75713449,2487.8,2487.1,0.7856]
[1746987589783,4.77682433,2487.8,2487.1,0.7856]
[1746987589984,0.75713449,2487.8,2487.1,0.7856]
[1746987590141,4.01977918,2487.7,2487.1,0.7856]
[1746987590980,4.77684715,2487.8,2487.1,0.7856]
[1746987591182,3.63848109,2487.9,2487.2,8.0]
[1746987592186,2.719,2487.9,2487.2,8.0]
[1746987592354,2.719,2487.9,2487.3,2.45119909]
[1746987592554,2.719,2487.9,2487.3,0.04019909]
[1746987592897,6.7384582,2487.9,2487.2,8.0]
[1746987593190,2.719,2487.9,2487.2,8.0]
[1746987594460,2.719,2487.9,2487.2,9.151626]
[1746987595194,0.8139,2488.1,2487.4,8.0]
[1746987595351,5.438,2488.2,2487.4,8.0]
[1746987595754,9.45699674,2488.2,2487.4,8.0]
[1746987595957,4.01914361,2488.1,2487.4,8.0]
[1746987596153,4.01914361,2488.1,2487.4,9.2908526]
[1746987596398,4.01919849,2488.1,2487.4,9.2908526]
[1746987598096,9.45705925,2488.2,2487.4,9.2908526]
[1746987598602,6.73805925,2488.2,2487.4,9.2908526]
[1746987598762,6.73805925,2488.2,2487.5,0.7959]
[1746987598958,2.719,2488.2,2487.5,2.10067526]
[1746987599164,2.719,2488.2,2487.6,0.04019459]
[1746987600169,6.73810036,2488.2,2487.6,0.04019459]
[1746987600382,2.719,2488.2,2487.5,2.10067526]
[1746987600611,2.719,2488.2,2487.6,0.04019376]
[1746987600814,2.719,2488.2,2487.6,9.2551869]
[1746987600979,6.73808294,2488.2,2487.6,9.2551869]
[1746987602181,4.01908294,2488.2,2487.6,9.2551869]
[1746987603979,4.01947728,2487.9,2487.5,0.7959]
[1746987604175,4.01960809,2487.9,2487.5,0.7959]
[1746987604488,4.01937553,2488.0,2487.5,0.7959]
[1746987604692,4.83990694,2488.1,2487.5,0.7959]
[1746987605094,4.01934812,2488.0,2487.5,0.7959]
[1746987605302,4.01955282,2487.9,2487.5,0.7959]
[1746987605615,4.0196974,2487.8,2487.5,0.7959]
[1746987606006,4.0192926,2488.0,2487.5,0.7959]
[1746987607123,4.01945629,2487.9,2487.5,0.7959]
[1746987607279,4.83988651,2488.1,2487.5,0.7959]
[1746987607280,4.01936707,2488.0,2487.5,0.7959]
[1746987608179,4.01957389,2487.9,2487.5,0.7959]
[1746987608514,4.01977877,2487.7,2487.5,0.7959]
[1746987608712,4.01964858,2487.8,2487.5,0.7959]
[1746987609495,4.01953495,2487.9,2487.5,0.7959]
[1746987609695,4.01965275,2487.8,2487.3,8.753]
[1746987610220,4.01968981,2487.8,2487.3,8.753]
[1746987610916,4.90547458,2487.9,2487.3,8.753]
[1746987611296,4.01962484,2487.8,2487.3,8.753]
[1746987611495,4.01978153,2487.7,2487.3,0.753]
[1746987611720,4.02001767,2487.6,2487.5,8.0]
[1746987611903,4.02001767,2487.6,2487.3,0.753]